Cogmind - Beta 16.1 @@@ ROGUE MODE // 2026.04.25 @ 22:26:56 Player: mephiles96 Result: Destroyed by S-27 Virus with Autogun Performance ------------- Evolutions (6) 3000 Regions Visited (7) 1400 Robots Destroyed (41) 205 Value Destroyed (1079) 1079 Prototype IDs (6) 120 Alien Tech Used (0) 0 Bonus (1300) 1300 TOTAL SCORE: 7104 Bonus ------- Entered DSFs 500 Registered with UFD 300 Met Optimus in HQ 500 Cogmind --------- Core Integrity 0/1150 Matter 156/300 Energy 2/100 System Corruption 0% Temperature Cool (0) Movement Hovering (66) Location -4/Upper Caves Parts ------- > --- POWER (2) -------- (None) > --- PROPULSION (6) --- Improved Gyrokinetic Inverter Improved Gyrokinetic Inverter Improved Gyrokinetic Inverter > --- UTILITY (8) ------ Large Storage Unit > --- WEAPON (3) ------- (None) > --- INVENTORY (15) --- Backup Power VII Centrium Wheel Linear Gravjet Improved Gyrokinetic Inverter Advanced Power Amplifier Enhanced Optical Array Transmission Jammer Advanced ECM Suite Peak State ------------ > --- POWER ------------ Light Angular Momentum Engine Reinforced Fission Core > --- PROPULSION ------- Improved Gyrokinetic Inverter Improved Gyrokinetic Inverter Improved Gyrokinetic Inverter Improved Gyrokinetic Inverter Improved Gyrokinetic Inverter Improved Gyrokinetic Inverter > --- UTILITY ---------- Large Storage Unit Structural Scanner Signal Interpreter Light Armor Plating Light Armor Plating Hardened Heavy Armor Plating > --- WEAPON ----------- Gauss Rifle Gauss Rifle Heavy Machine Gun > --- INVENTORY -------- Centrium Wheel Airjet Linear Gravjet Enhanced Optical Array Advanced Sensor Array Transmission Jammer Light Armor Plating Advanced System Shield Advanced System Shield Autogun Great Maul [Rating: 83] Favorites ----------- Power Light Nuclear Core Engine Light Angular Momentum Engine Power Core Light Nuclear Core Reactor Light Antimatter Reactor Propulsion Light Treads Treads Light Treads Leg Thunder Leg Wheel Armored Wheel Hover Unit Improved Gyrokinetic Inverter Utility Large Storage Unit Device Structural Scanner Storage Large Storage Unit Processor Signal Interpreter Hackware Advanced System Shield Protection Light Armor Plating Weapon Autogun Energy Gun Small Laser Ballistic Gun Autogun Special Weapon Mining Laser Impact Weapon Great Maul Build | -11 -10 -10 -7 -5 -5 -4 -4 ------- Run | Yrd Mat Sub Scr Fac DSF Fac Upp Slots Evolved 12 | . . . . 10 . 2 . Power 1 | . . . . . . 1 . Propulsion 4 | . . . . 4 . . . Utility 6 | . . . . 5 . 1 . Weapon 1 | . . . . 1 . . . Parts Attached 48 | 4 8 4 4 9 10 9 . Power 6 | . 2 . 1 . 2 1 . Engine 2 | . 1 . . . 1 . . Core 3 | . 1 . 1 . 1 . . Reactor 1 | . . . . . . 1 . Propulsion 15 | 2 . 1 1 3 2 6 . Treads 4 | 2 . . 1 . 1 . . Leg 1 | . . . . 1 . . . Wheel 2 | . . 1 . 1 . . . Hover 8 | . . . . 1 1 6 . Flight . | . . . . . . . . Utility 13 | 1 1 2 1 4 2 2 . Device 3 | 1 . . 1 1 . . . Storage 1 | . 1 . . . . . . Processor 1 | . . . . 1 . . . Hackware 2 | . . . . . . 2 . Protection 6 | . . 2 . 2 2 . . Artifact . | . . . . . . . . Weapon 14 | 1 5 1 1 2 4 . . Energy Gun . | . . . . . . . . Energy Cannon . | . . . . . . . . Ballistic Gun 11 | 1 4 1 1 1 3 . . Ballistic Cannon . | . . . . . . . . Launcher . | . . . . . . . . Special Weapon 2 | . 1 . . . 1 . . Impact Weapon 1 | . . . . 1 . . . Slashing Weapon . | . . . . . . . . Piercing Weapon . | . . . . . . . . Special Melee Weapon . | . . . . . . . . Unidentified Prototypes . | . . . . . . . . Parts Lost 22 | . 1 2 . . 3 . 16 Power 4 | . 1 . . . 1 . 2 Propulsion 5 | . . 1 . . 1 . 3 Utility 8 | . . 1 . . . . 7 Weapon 5 | . . . . . 1 . 4 Highest Loss Streak 11 | . 1 1 . . 2 . 11 To Critical Strikes . | . . . . . . . . Average Backups 13 | 6 14 14 14 8 13 12 9 Power 1 | 1 1 1 1 1 1 1 1 Propulsion 2 | 4 3 1 1 1 2 3 3 Utility 6 | . 5 8 7 2 6 6 4 Weapon 3 | 1 5 3 4 3 2 1 . Tool/Special . | . . . . . . . . Unused Backups 17 | . 8 . 4 . . . 5 Power 1 | . 1 . . . . . . Propulsion 3 | . 2 . . . . . 1 Utility 9 | . 1 . 4 . . . 4 Weapon 4 | . 4 . . . . . . Tool/Special . | . . . . . . . . Average Slot Usage (%) 93 | . 98 100 100 90 89 77 39 Engine 2 | . 7 . . . 2 5 . Core 8 | . 6 14 14 5 1 . . Treads 17 | . 27 23 17 11 12 . . Wheel 5 | . . 4 10 10 6 . . Hover 3 | . . . . . 6 29 22 Device 7 | . 13 2 4 10 5 6 1 Storage 11 | . 14 14 14 5 5 5 5 Protection 7 | . . 11 9 16 13 12 . Ballistic Gun 22 | . 26 25 28 11 15 7 1 Peak Build Rating 83 | 7 13 13 16 42 66 83 79 Average Rating 22 | 6 11 12 15 33 55 67 45 On Entrance 30 | 6 7 12 13 15 42 66 79 Avg Prop Armor Cover (%) 8 | . . 9 9 11 10 1 7 Naked Turns . | . . . . . . . . Heaviest Build 92 | 14 32 34 34 46 92 69 51 Greatest Support 72 | 40 40 40 40 24 67 72 56 Greatest Overweight (x) 8 | . . 2 2 1 6 5 8 Average Overweight (x) 1 | . . . 1 1 4 . 1 Largest Inventory Capacity 15 | 8 15 15 15 15 15 15 15 Average Capacity 14 | 8 14 15 15 15 15 15 15 Most Carried 15 | 7 15 15 15 14 15 15 10 Average Carried 13 | 6 14 14 14 8 13 12 9 Final Capacity 15 | 8 15 15 15 15 15 15 15 Final Carried 15 | 7 15 13 15 10 15 10 8 Class Distribution -------------------- 86% | Mutant 5% | Assassin 3% | Tank Dominant Class ---------------- Mutant | -10/Materials Mutant | -10/Subcaves Mutant | -7/Scraptown Assassin | -5/Factory Tank | -5/DSF Mutant | -4/Factory Mutant | -4/Upper Caves Resources | -11 -10 -10 -7 -5 -5 -4 -4 ----------- Run | Yrd Mat Sub Scr Fac DSF Fac Upp Matter Collected 1770 | 242 647 139 111 . 438 146 47 Remotely . | . . . . . . . . Salvage Created 1341 | 29 622 131 . . 351 146 62 Parts 77 | 4 42 10 . . 18 1 2 Haulers Intercepted 2 | . 2 . . . . . . Recyclers Shooed 3 | 1 2 . . . . . . Parts Field Recycled . | . . . . . . . . Retrieved Matter . | . . . . . . . . Parts Self-Destructed 18 | . . 10 . . . . 8 Prevented . | . . . . . . . . Parts Restored . | . . . . . . . . Kills | -11 -10 -10 -7 -5 -5 -4 -4 ------- Run | Yrd Mat Sub Scr Fac DSF Fac Upp Combat Hostiles Destroyed 28 | . 10 7 . . 8 . 3 Guns 26 | . 10 7 . . 7 . 2 Classes Destroyed 13 | 1 6 2 . . 2 2 . Worker 2 | . 1 . . . . 1 . Builder 3 | . 2 . . . . 1 . Tunneler 2 | 1 . . . . . 1 . Hauler 2 | . 2 . . . . . . Recycler 1 | . 1 . . . . . . Mechanic 1 | . . . . . . 1 . Operator 1 | . . . . . . 1 . Watcher 1 | . 1 . . . . . . Swarmer 13 | . . 6 . . 4 . 3 Grunt 12 | . 10 . . . 2 . . Specialist 1 | . . . . . 1 . . Hunter 1 | . . . . . 1 . . Subdweller 1 | . . 1 . . . . . Best Kill Streak 4 | 1 3 3 . . 4 2 2 Combat Bots Only 4 | . 2 3 . . 4 . 2 Max Kills in Single Turn 2 | 1 1 1 . . 2 1 1 Gunslinging 1 | . . . . . 1 . . Exploded . | . . . . . . . . Melee . | . . . . . . . . Uniques/NPCs Destroyed . | . . . . . . . . Combat | -11 -10 -10 -7 -5 -5 -4 -4 -------- Run | Yrd Mat Sub Scr Fac DSF Fac Upp Hostile Shots Fired 452 | . 69 49 . . 123 10 201 Missed 119 | . 18 8 . . 26 6 61 Hits 333 | . 51 41 . . 97 4 140 Projectile 333 | . 51 41 . . 97 4 140 Critical Strikes 3 | . . . . . 2 . 1 Damage Taken 5851 | . 640 536 . . 2289 80 2306 Core 1675 | . 103 59 . . 361 . 1152 Absorbed by Shields . | . . . . . . . . Regen/Repaired (Parts) 447 | . 159 . 288 . . . . Core Remaining (%) 66 | 100 . . 35 . 63 . . Volleys Fired 131 | 2 71 26 . . 29 . 3 Largest 3 | 2 2 2 . . 3 . 2 Hottest 100 | 40 100 100 . . 76 . 51 Shots Fired 272 | 4 132 51 . . 81 . 4 Gun 266 | 4 129 50 . . 79 . 4 Cannon . | . . . . . . . . Launcher . | . . . . . . . . Special 6 | . 3 1 . . 2 . . Kinetic 266 | 4 129 50 . . 79 . 4 Thermal 4 | . 3 1 . . . . . Explosive . | . . . . . . . . Electromagnetic . | . . . . . . . . Robot Hit Streak 24 | 3 24 15 . . 20 . 3 Robot Miss Streak 5 | 1 4 5 . . 3 . 1 Penetration Max 1 | . . . . . 1 . . Secondary Targets 4 | . 1 1 . . 2 . . Max Gunslinging Chain 1 | . 1 1 . . 1 . . Shots Hit Robots 201 | 3 86 37 . . 64 5 6 Core Hits 64 | 1 30 8 . . 22 1 2 Critical Kills 1 | . . . . . 1 . . Critical Parts Destroyed 3 | . . . . . . 2 1 Critical Strikes 4 | . . . . . 1 2 1 Destroy 1 | . . . . . 1 . . Smash 3 | . . . . . . 2 1 Melee Attacks 29 | . . . . 8 6 10 5 Impact 29 | . . . . 8 6 10 5 Slashing . | . . . . . . . . Piercing . | . . . . . . . . Sneak Attacks 6 | . . . . . 1 5 . Combat Hostiles . | . . . . . . . . Follow-up Attacks . | . . . . . . . . Damage Inflicted 3637 | 25 1278 544 . . 1143 449 198 Guns 2855 | 25 1278 544 . . 947 . 61 Cannons . | . . . . . . . . Explosions . | . . . . . . . . Melee 782 | . . . . . 196 449 137 Ramming . | . . . . . . . . Kinetic 2855 | 25 1278 544 . . 947 . 61 Thermal . | . . . . . . . . Explosive . | . . . . . . . . Electromagnetic . | . . . . . . . . Impact 782 | . . . . . 196 449 137 Slashing . | . . . . . . . . Piercing . | . . . . . . . . Highest Corruption 2 | . . . . 2 2 . . Average Corruption 2 | . . . . 2 2 . . Corruption Purged . | . . . . . . . . Corruption Blocked . | . . . . . . . . Effects 9 | . . . . 2 7 . . Matter Fused 3 | . . . . 1 2 . . Heat Flow Errors 1 | . . . . 1 . . . Parts Rejected 1 | . . . . . 1 . . Data Loss (minor) 1 | . . . . . 1 . . Data Loss (major) 1 | . . . . . 1 . . Alerts 1 | . . . . . 1 . . Weapon Failures 1 | . . . . . 1 . . Overload Shots . | . . . . . . . . Overflow Damage 414 | . . . . . 56 292 66 Projectiles . | . . . . . . . . Explosions . | . . . . . . . . Melee 414 | . . . . . 56 292 66 Knockbacks 2 | . . . . . . . 2 Impact 2 | . . . . . . . 2 Kinetic . | . . . . . . . . Secondary . | . . . . . . . . Self-Inflicted Damage . | . . . . . . . . Shots . | . . . . . . . . Rammed . | . . . . . . . . Targets Rammed . | . . . . . . . . Kicked . | . . . . . . . . Crushed . | . . . . . . . . Highest Temperature 1230 | . 93 . . 206 1230 352 9 Average Temperature 98 | . 22 . . 110 277 80 3 Received Heat Transfer 795 | . 357 96 . . 297 . 45 Effects 23 | . . . . 3 16 4 . Shutdowns 6 | . . . . . 5 1 . Energy Bleed 1 | . . . . . 1 . . Interference 6 | . . . . 3 3 . . Matter Decay 2 | . . . . . 1 1 . Short Circuit 2 | . . . . . 2 . . Damage (minor) 2 | . . . . . . 2 . Damage (major) 3 | . . . . . 3 . . Damage (core) 1 | . . . . . 1 . . Siege Activations . | . . . . . . . . Martial Activations . | . . . . . . . . Shielding Activations . | . . . . . . . . Robots Disrupted . | . . . . . . . . Combat Hostiles . | . . . . . . . . Robots Corrupted 3 | . . . . . 1 1 1 Combat Hostiles 2 | . . . . . 1 . 1 Parts Fried 9 | . . . . . 1 7 1 Impact Corruptions 12 | . . . . . 2 7 3 Robots Melted . | . . . . . . . . Combat Hostiles . | . . . . . . . . Parts Melted . | . . . . . . . . Heat Transferred . | . . . . . . . . Parts Sabotaged . | . . . . . . . . Parts Stolen . | . . . . . . . . Parts Stripped . | . . . . . . . . Power Chain Reactions . | . . . . . . . . Alert | -11 -10 -10 -7 -5 -5 -4 -4 ------- Run | Yrd Mat Sub Scr Fac DSF Fac Upp Maximum Alert Level 1 | . . . . 1 1 . . Low Security (%) 93 | 100 100 . . 96 55 100 . Level 1 6 | . . . . 3 44 . . Level 2 . | . . . . . . . . Level 3 . | . . . . . . . . Level 4 . | . . . . . . . . Level 5 . | . . . . . . . . High Security . | . . . . . . . . Max Security . | . . . . . . . . Sterilizations 1 | . . . . . 1 . . Peak Influence 257 | 5 55 . . 200 257 134 . Initial 134 | . . . . . 69 134 . Average 53 | . 12 . . 98 171 85 . Influence Increases 1169 | 5 363 140 . 223 218 90 130 Destroy 0b10 Robot/C 540 | . 200 120 . . 160 . 60 Destroy 0b10 Robot/NC 65 | 5 35 . . . . 25 . Destroy Leader 106 | . 56 20 . . 20 . 10 Successful Hack 57 | . 23 . . 7 . 27 . Disable Machine 60 | . 45 . . . . 15 . Anti-Garrison Action 200 | . . . . 200 . . . Destroy Structure 36 | . 4 . . 16 8 8 . Partial Spotted 15 | . . . . . . 15 . Lose Combat Pursuer 90 | . . . . . 30 . 60 Influence Decreases 1169 | 5 363 140 . 124 60 303 174 Entered New Map 170 | . . . . . 30 123 17 Time Decay 815 | 5 331 120 . 124 . 180 55 Lost Part 152 | . . 20 . . 30 . 102 Purge Threat 32 | . 32 . . . . . . Squads Dispatched 5 | . 1 . . 3 1 . . Investigation 4 | . 1 . . 3 . . . Extermination . | . . . . . . . . Reinforcement 1 | . . . . . 1 . . Assault . | . . . . . . . . Garrison . | . . . . . . . . Intercept . | . . . . . . . . Searches Triggered . | . . . . . . . . Construction Impeded . | . . . . . . . . Haulers Reinforced . | . . . . . . . . Active Scanning Responses . | . . . . . . . . Cargo Convoy Interrupts . | . . . . . . . . Stealth | -11 -10 -10 -7 -5 -5 -4 -4 --------- Run | Yrd Mat Sub Scr Fac DSF Fac Upp Distress Signals . | . . . . . . . . Communications Jammed . | . . . . . . . . Distress Signals . | . . . . . . . . Times Spotted 63 | . 18 7 . . 18 2 18 Peak Tracking Total 14 | . 3 3 . . 5 2 14 Tactical Retreats 5 | . . . . . 2 . 3 Traps | -11 -10 -10 -7 -5 -5 -4 -4 ------- Run | Yrd Mat Sub Scr Fac DSF Fac Upp Traps Triggered 4 | . 1 . . 1 2 . . Indirectly . | . . . . . . . . Trap Hack Attempts . | . . . . . . . . Triggered . | . . . . . . . . Disarmed 6 | . 6 . . . . . . Reprogrammed . | . . . . . . . . Reused . | . . . . . . . . Traps Extracted . | . . . . . . . . Installed . | . . . . . . . . Triggered . | . . . . . . . . Machines | -11 -10 -10 -7 -5 -5 -4 -4 ---------- Run | Yrd Mat Sub Scr Fac DSF Fac Upp Machines Disabled 5 | . 4 . . . . 1 . Max in Single Turn 1 | . 1 . . . . 1 . Garrison Access 1 | . . . . 1 . . . Machines Repaired . | . . . . . . . . Machines Dismantled . | . . . . . . . . Machines Sabotaged . | . . . . . . . . Overloaded Fab Kills . | . . . . . . . . Hacking | -11 -10 -10 -7 -5 -5 -4 -4 --------- Run | Yrd Mat Sub Scr Fac DSF Fac Upp Machines Accessed 23 | . 6 . 6 7 . 4 . Terminals 11 | . 5 . . 4 . 2 . Fabricators . | . . . . . . . . Repair Stations 2 | . 1 . . . . 1 . Recycling Units 2 | . . . . 2 . . . Scanalyzers 1 | . . . . . . 1 . Garrison Access 1 | . . . . 1 . . . Total Hacks 83 | . 19 . 42 15 . 7 . Successful 59 | . 10 . 42 6 . 1 . Failed 23 | . 8 . . 9 . 6 . Catastrophic 5 | . 1 . . 2 . 2 . Database Lockouts 1 | . 1 . . . . . . Manual 24 | . 13 . . 10 . 1 . Terminals 23 | . 13 . . 8 . 2 . Fabricators . | . . . . . . . . Repair Stations 8 | . 6 . . . . 2 . Recycling Units 5 | . . . . 5 . . . Scanalyzers 3 | . . . . . . 3 . Garrison Access 2 | . . . . 2 . . . Terminal Hacks 49 | . 3 . 42 4 . . . Record 38 | . . . 37 1 . . . Robot Analysis 5 | . 1 . 4 . . . . Open DSF 1 | . . . . 1 . . . Recycling Unit Index 1 | . . . . 1 . . . Alert Level 1 | . . . . 1 . . . Unreport Threat 1 | . 1 . . . . . . Disarm Traps 1 | . 1 . . . . . . Proto ID Catalog 1 | . . . 1 . . . . Fabricator Hacks . | . . . . . . . . Repair Station Hacks 7 | . 6 . . . . 1 . Scan Component 3 | . 3 . . . . . . Repair 3 | . 3 . . . . . . Refit 1 | . . . . . . 1 . Recycling Unit Hacks . | . . . . . . . . Scanalyzer . | . . . . . . . . Garrison Access Hacks . | . . . . . . . . Unauthorized Hacks 3 | . 1 . . 2 . . . Terminals 1 | . 1 . . . . . . Track 1 | . 1 . . . . . . Fabricators . | . . . . . . . . Repair Stations . | . . . . . . . . Recycling Units 1 | . . . . 1 . . . Fedlink 1 | . . . . 1 . . . Scanalyzers . | . . . . . . . . Garrison Access 1 | . . . . 1 . . . Jam 1 | . . . . 1 . . . Data Cores Recovered . | . . . . . . . . Used . | . . . . . . . . Hacking Detections 13 | . 4 . . 5 . 4 . Full Trace Events 1 | . . . . 1 . . . Feedback Events . | . . . . . . . . Feedback Blocked . | . . . . . . . . Robot Schematics Acquired . | . . . . . . . . Robots Built . | . . . . . . . . Authchips . | . . . . . . . . Time . | . . . . . . . . Total Robot Build Rating . | . . . . . . . . Part Schematics Acquired . | . . . . . . . . Parts Built . | . . . . . . . . Authchips . | . . . . . . . . Time . | . . . . . . . . Total Part Build Rating . | . . . . . . . . Part Studies Acquired . | . . . . . . . . Parts Repaired 3 | . 3 . . . . . . Time 90 | . 90 . . . . . . Parts Recycled . | . . . . . . . . Recycled Matter . | . . . . . . . . Retrieved Matter . | . . . . . . . . Retrieved Components . | . . . . . . . . Parts Scanalyzed . | . . . . . . . . Part Schematics Acquired . | . . . . . . . . Parts Damaged . | . . . . . . . . Bothacking | -11 -10 -10 -7 -5 -5 -4 -4 ------------ Run | Yrd Mat Sub Scr Fac DSF Fac Upp Used RIF Installer . | . . . . . . . . Robots Hacked . | . . . . . . . . Non-combat . | . . . . . . . . Combat . | . . . . . . . . Robot Hacks Applied . | . . . . . . . . Relay Couplers Released . | . . . . . . . . Fabnet Peak Effective % . | . . . . . . . . Robots Rewired . | . . . . . . . . Allies Hacked . | . . . . . . . . Hacks Repelled . | . . . . . . . . Allies | -11 -10 -10 -7 -5 -5 -4 -4 -------- Run | Yrd Mat Sub Scr Fac DSF Fac Upp Total Allies . | . . . . . . . . Largest Group . | . . . . . . . . Highest-Rated Group . | . . . . . . . . Highest-Rated Ally . | . . . . . . . . Initial UFD Resources 51 | . . . . 37 47 51 51 Total Orders . | . . . . . . . . Ally Attacks . | . . . . . . . . Total Damage . | . . . . . . . . Kills . | . . . . . . . . Allies Corrupted . | . . . . . . . . Allies Melted . | . . . . . . . . Intel | -11 -10 -10 -7 -5 -5 -4 -4 ------- Run | Yrd Mat Sub Scr Fac DSF Fac Upp Active Infowar (turns) 3441 | 12 1659 50 893 360 347 97 23 Sensors 513 | . . . . 355 38 97 23 Structural 1586 | . . . 893 346 347 . . Seismic 1721 | 12 1659 50 . . . . . Robot Analysis Total 5 | . 1 . 4 . . . . Derelict Logs Recovered . | . . . . . . . . Drone Launches . | . . . . . . . . Drone Recoveries . | . . . . . . . . Exploration | -11 -10 -10 -7 -5 -5 -4 -4 ------------- Run | Yrd Mat Sub Scr Fac DSF Fac Upp Turns Passed 6206 | 37 1685 280 2763 360 362 368 351 Spaces Moved 4062 | 16 825 124 2047 296 126 381 247 Core 45 | . . . . . . . 45 Treads 1313 | 16 825 89 376 . 7 . . Legs . | . . . . . . . . Wheels 2126 | . . 35 1671 296 119 5 . Hover 578 | . . . . . . 376 202 Flight . | . . . . . . . . Fastest Speed 50 | 160 160 120 120 105 105 50 52 Average Speed 131 | 160 160 149 134 105 161 66 114 Slowest Speed 450 | 160 160 240 240 105 243 165 450 Overloaded Moves . | . . . . . . . . Propulsion Burnouts . | . . . . . . . . Robots Hopped . | . . . . . . . . Potential Cave-ins . | . . . . . . . . Cave-ins Triggered . | . . . . . . . . Exploration Rate (%) 41 | 2 98 10 95 8 80 7 31 Regions Visited 7 Branch Regions 3 Pre-discovered Areas . | . . . . . . . . Known Exits Taken 1 | . . . . 1 . . . Unknown Exits Taken 5 | 1 1 1 1 . . 1 . Scrap Searched 5 | . . . 5 . . . . Spaces Dug 17 | . 2 . . 8 3 4 . Terrain Destroyed 18 | . 2 . . 8 4 4 . Melee 15 | . . . . 8 3 4 . Projectile 2 | . 2 . . . . . . AOE . | . . . . . . . . Terrain Rammed . | . . . . . . . . Walls Destroyed . | . . . . . . . . Machines Disabled . | . . . . . . . . Actions | -11 -10 -10 -7 -5 -5 -4 -4 --------- Run | Yrd Mat Sub Scr Fac DSF Fac Upp Total 4676 | 22 1080 175 2071 327 221 479 301 Wait 299 | . 145 22 3 10 24 51 44 Move 4055 | 15 824 123 2046 295 125 380 247 Hop . | . . . . . . . . Pick Up 36 | 1 15 . 9 3 5 3 . Fast Attach 15 | 1 4 . . 2 7 1 . Attach 30 | . . 2 . 8 4 14 2 Detach 13 | . . . . . 6 7 . Swap 27 | 3 9 2 4 1 3 5 . Drop 33 | . 12 . 9 . 4 8 . Fire 131 | 2 71 26 . . 29 . 3 Melee 29 | . . . . 8 6 10 5 Ram . | . . . . . . . . Kick . | . . . . . . . . Crush . | . . . . . . . . Escape Stasis 8 | . . . . . 8 . . Rewire . | . . . . . . . . Trap . | . . . . . . . . Miscellaneous . | . . . . . . . . Route ------- -11/Scrapyard -10/Materials (discovered 5 exits: [*Mat x3] / [*Min] / [*Sub]) -10/Subcaves (discovered 2 exits: [*Mat] / *Scr) -7/Scraptown (discovered 2 exits: *Fac x2) -5/Factory -5/DSF -4/Factory -4/Upper Caves History --------- Turn | Location | Event 4 | -11/Scrapyard | Discovered new exit (range 3) 38 | -11/Scrapyard | Entered Materials 233 | -10/Materials | Discovered new exit (range 13) 312 | -10/Materials | Build established: Mutant 392 | -10/Materials | Discovered new exit (range 15) 661 | -10/Materials | Discovered new exit (range 15) 817 | -10/Materials | Discovered new exit (range 16) 889 | -10/Materials | Central database locked down 1362 | -10/Materials | Repaired Lgt. Treads 1389 | -10/Materials | Repaired Seismic Detector 1429 | -10/Materials | Repaired Lgt. Nuclear Core 1708 | -10/Materials | Discovered new exit (range 8) 1723 | -10/Materials | Entered Subcaves 1724 | -10/Subcaves | Approached by a straggling Scientist 1897 | -10/Subcaves | Discovered new exit (range 13) 1956 | -10/Subcaves | Core integrity fell below 50% 1984 | -10/Subcaves | Shifting Twisted Machinery released Battle Cannon 1988 | -10/Subcaves | Shifting Twisted Machinery released Sub. Beam Cannon 2003 | -10/Subcaves | Entered Scraptown 2467 | -7/Scraptown | Visited CR-KLE's Repair Center 2475 | -7/Scraptown | CR-KLE repaired 6 parts 2558 | -7/Scraptown | Discovered new exit (range 5) 2725 | -7/Scraptown | Visited Assassins FH 2761 | -7/Scraptown | Visited Cyclists 2797 | -7/Scraptown | Visited Spacefarers 2860 | -7/Scraptown | Visited Awakened 3192 | -7/Scraptown | Visited UFD Registry 3192 | -7/Scraptown | Registered with UFD as "Electroshaft" 3356 | -7/Scraptown | Visited The Evicted 3385 | -7/Scraptown | Visited Symbiants 3463 | -7/Scraptown | Entered Cyclist Reading Room 3562 | -7/Scraptown | Visited Science Guys 3610 | -7/Scraptown | Visited Junk Cannon Lab 3657 | -7/Scraptown | Visited Analyses Database 3759 | -7/Scraptown | Discovered new exit (range 5) 3807 | -7/Scraptown | Visited Cartography Club 4017 | -7/Scraptown | Visited Junk Repository 4077 | -7/Scraptown | Visited Research Penetration Think Tank 4129 | -7/Scraptown | Visited Scrapoid Research Area 4509 | -7/Scraptown | Visited Junk Repository 4536 | -7/Scraptown | Visited Science Testing Area 4645 | -7/Scraptown | Met Optimus 4645 | -7/Scraptown | Accepted into 0bPrime 4764 | -7/Scraptown | Civil war broke out across Scraptown 4766 | -7/Scraptown | Entered Factory 4766 | -5/Factory | Evolved 10 slots: Propulsion x4, Utility x5, Weapon x1 4840 | -5/Factory | Loaded intel: 8 recycling unit locations 5090 | -5/Factory | Identified exit to DSF 5103 | -5/Factory | Build established: Assassin 5126 | -5/Factory | Entered DSF 5152 | -5/DSF | Additional patrols routed to DSF 5226 | -5/DSF | Attached CPS modules to G-50 Soldier. 5229 | -5/DSF | Attached CPS modules to G-50 Soldier. 5370 | -5/DSF | Sterilization system engaged 5390 | -5/DSF | Ambient heat levels rising (+10) 5405 | -5/DSF | Ambient heat levels rising (+10) 5413 | -5/DSF | Discovered new exit (range 14) 5420 | -5/DSF | Ambient heat levels rising (+10) 5435 | -5/DSF | Ambient heat levels rising (+10) 5450 | -5/DSF | Ambient heat levels rising (+10) 5465 | -5/DSF | Ambient heat levels rising (+10) 5480 | -5/DSF | Ambient heat levels rising (+10) 5488 | -5/DSF | Entered Factory 5488 | -4/Factory | Evolved 2 slots: Power x1, Utility x1 5692 | -4/Factory | Discovered new exit (range 12) 5856 | -4/Factory | Entered Upper Caves 5944 | -4/Upper Caves | Lost 11 parts (1p1n6u3w) 5963 | -4/Upper Caves | Core integrity fell below 50% 6095 | -4/Upper Caves | Spotted B-86 Titan 6126 | -4/Upper Caves | Core integrity fell below 20% 6156 | -4/Upper Caves | Lost 3 parts (1p1n1w) 6176 | -4/Upper Caves | Build established: Mutant 6188 | -4/Upper Caves | Attracted the attention of an 0b10 base 6207 | -4/Upper Caves | Destroyed by S-27 Virus with Autogun Last Messages --------------- 06028_ S-27 Virus IFF system glitched. 06040_ Imp. Gyrokinetic Inverter destroyed. 06046_ VTOL Module fried. 06046_ S-27 Virus destroyed. 06051_ Acquired 21 matter. 06052_ Acquired 19 matter. 06056_ VTOL Module fries itself beyond repair. 06056_ Autogun fries itself beyond repair. 06098_ Slug penetrates Wall. 06102_ Penetrated by Slug. 06105_ B-86 Titan activates siege mode. 06105_ Slug penetrates Wall. 06108_ Hvy. Machine Gun destroyed. 06108_ Imp. Gyrokinetic Inverter destroyed. 06116_ Acquired 7 matter. 06119_ Penetrated by Slug. 06125_ Lgt. Antimatter Reactor destroyed. 06125_ Knocked back. 06126_ B-86 Titan exits siege mode. 06206_ Adv. System Shield destroyed. Map ----- +----------------------------------------------------+ | ?????????????????????????????????????????????????? | | ?????????????????????????????????????????????????? | | ?????????????????????????????????????????????????? | | ?????????????????????????????????????????????????? | | ?????????????????????????????????????????????????? | | ?????????????????????????????????????????????????? | | ?????????????????????????????????????????????????? | | ?????????????????????????????????????????????????? | | ?????????????????????????????????????????????????? | | ?????????????????????????????????????????????????? | | ?????????????????????????????????????????????????? | | ?????????????????????????????????????????????????? | | ?????????????????????????????????????????????????? | | ????????????????????????????? ???????????????? ??? | | ??????????????????????????? #???????????# ??? | | ?????????????????????????? ???????????? # | | ??????????????????????????# ????####????# # | | ??????????????????????????# ##?## ##???# # | | ?????????????????????????## ### #???# # | | ?????????????????????????# ## #????# # | | ?????????????????????????# ## #????# # | | ??????????????????????????# ###?## # | | ???????????????????????????# ### # | | ???????####################### | | ???????# s s s #; | | ???????# sss @ ;; # | | ???????# ######++######## ## ## | | ???????# #???# ?????# #" ### | | ???????# #?? "??# ## ### | | ???????# #? ???# #"# ""# | | ???????# # $ " ?# ##### #"# | | ???????# # # "" # #???## #### | | ???????# ##### " + #????## #?# | | ??????## # "" +$ #?????# #?# | | ??????#" / " # ????? #?#" | | ??????## / "# #????#####?#" ##" | | ???????# # "# #??????????## ###" | | ???????# ####### "# #??????????# ##?## | | ???????# #?????? ? "# #?????????## ##??##% | | ???????# #?????? ??????# ????????### % #???# | | ???????# #?????? ??????? ???###### #???#" | | ???????# ########//#????? ???# ##???## | | ???????# ???## ##?????? | | ???????# ??????# #??????? | | ???????################?????????## #?????? | | ?????????????????????????????????# #????? | | ?????????????????????????????????# #???? | | ?????????????????????????????????##### ## #??? | | ?????????????????????????????????????# ###?####??? | | ?????????????????????????????????????###?????????? | +----------------------------------------------------+ Best States ------------- Heat Dissipation 43 Energy Generation 34 Energy Capacity 360 Matter Stores 300 Matter Capacity 300 Sight Range 16 Robot Scan Range 16 Terrain Scan Density 10 Armor Coverage 1200 Evasion (%) 54 Recoil Reduction 3 Defensive Hacking 28 Item Schematics ----------------- None Robot Schematics ------------------ None Fabricated ------------ Nothing Repaired ---------- Lgt. Treads | 15% | -10/Materials Seismic Detector | 35% | -10/Materials Lgt. Nuclear Core | 44% | -10/Materials Studied --------- None Alien Tech Used ----------------- None Achievements -------------- Hot Goods Challenges ------------ None Game ------ Seed JammingSurveybotBlaster Manual? 0 Play Time 00:52:28 Cumulative 59.2 hours Start 2026.04.25 @ 21:36:55 End 2026.04.25 @ 22:26:56 Sessions 1 Manual Loads 0 Difficulty Rogue Special Mode None Game No. 75 Rogue 75 Adventurer 0 Explorer 0 Win Type - Total 1 Types 1/0/0/0/0/0/0/0/0/0 Lore% 34 Gallery% 36 Achievement% 29 Wizard Run 0 Options --------- Layout 2 ASCII 0 Keyboard 1 Movement Numpad Keybinds 1 Fullscreen 1 Font 24/Smallcaps Map View 50x44 Zoom Use 0% Tactical HUD 1 Map Filters NONE Filters NONE Steam 1 RUN: 05e7d88e-4064-40a7-973a-334bb38f4df8